fUSD/lending_fUSD_20240804
["ID","MTS","AMOUNT","RATE_DAILY","PERIOD"]
[334163771,1722805869622,-500.0,0.00023095,9]
[334163772,1722805869631,-500.0,0.00023095,9]
[334163773,1722805869642,-1738.84,0.00023095,9]
[334163774,1722805869653,-500.0,0.00023095,9]
[334163775,1722805869663,-500.0,0.00023095,9]
[334163776,1722805869672,-1249.0,0.00023095,9]
[334163777,1722805869682,-500.0,0.00023095,9]
[334163778,1722805869692,-648.05,0.00023095,9]
[334163779,1722805869702,-1912.77,0.00023095,9]
[334163780,1722805869713,-512.44,0.00023095,9]
[334163781,1722805869723,-500.0,0.00023095,9]
[334163782,1722805869733,-700.51,0.00023095,9]
[334163783,1722805869743,-2333.13,0.00023095,9]
[334163784,1722805869753,-1336.78,0.00023095,9]
[334163785,1722805869762,-500.0,0.00023095,9]
[334163786,1722805869772,-2730.38,0.00023095,9]
[334163787,1722805869782,-503.91798216,0.00023095,9]
[334163788,1722805869792,-500.0,0.00023095,9]
[334163789,1722805869801,-914.73,0.00023095,9]
[334163790,1722805869811,-500.0,0.00023095,9]
[334163791,1722805869821,-500.0,0.00023095,9]
[334163792,1722805869830,-500.0,0.00023095,9]
[334163793,1722805869840,-500.0,0.00023095,9]
[334163794,1722805869851,-500.0,0.00023095,9]
[334163795,1722805869860,-581.05,0.00023095,9]
[334163796,1722805869870,-2039.74,0.00023095,9]
[334163797,1722805869880,-671.9,0.00023095,9]
[334163798,1722805869890,-1746.98,0.00023095,9]
[334163799,1722805869900,-1826.84,0.00023095,9]
[334163800,1722805869910,-500.0,0.00023095,9]
[334163801,1722805869920,-1409.8,0.00023095,9]
[334163802,1722805869929,-617.4,0.00023095,9]
[334163803,1722805869939,-500.0,0.00023095,9]
[334163804,1722805869949,-6817.41,0.00023095,9]
[334163805,1722805869959,-500.0,0.00023095,9]
[334163806,1722805869968,-513.75,0.00023095,9]
[334163807,1722805869978,-1484.97,0.00023095,9]
[334163808,1722805869988,-500.0,0.00023095,9]
[334163809,1722805869998,-2027.34,0.00023095,9]
[334163810,1722805870008,-630.14140468,0.00023095,9]
[334163811,1722805870018,-500.0,0.00023095,9]
[334163812,1722805870028,-500.0,0.00023095,9]
[334163813,1722805870038,-1047.24,0.00023095,9]
[334163814,1722805870048,-500.0,0.00023095,9]
[334163815,1722805870057,-1539.01,0.00023095,9]
[334163816,1722805870067,-500.0,0.00023095,9]
[334163817,1722805870077,-500.0,0.00023095,9]
[334163818,1722805870086,-538.57,0.00023095,9]
[334163819,1722805870096,-500.0,0.00023095,9]
[334163820,1722805870108,-2974.83,0.00023095,9]
[334163821,1722805870117,-2337.3,0.00023095,9]
[334163822,1722805870127,-1410.21,0.00023095,9]
[334163823,1722805870137,-981.74,0.00023095,9]
[334163824,1722805870147,-500.0,0.00023095,9]
[334163825,1722805870158,-1835.59,0.00023095,9]
[334163826,1722805870169,-500.0,0.00023095,9]
[334163827,1722805870179,-500.0,0.00023095,9]
[334163828,1722805870189,-1335.18,0.00023095,9]
[334163829,1722805870198,-500.0,0.00023095,9]
[334163830,1722805870208,-500.0,0.00023095,9]
[334163831,1722805870218,-500.0,0.00023095,9]
[334163832,1722805870229,-500.0,0.00023095,9]
[334163833,1722805870239,-339.99700279,0.00023095,9]
[334163834,1722805870249,-642.87,0.00023095,9]
[334163835,1722805870259,-1361.87,0.00023095,9]
[334163836,1722805870269,-500.0,0.00023095,9]
[334163837,1722805870278,-500.0,0.00023095,9]
[334163838,1722805870288,-500.0,0.00023095,9]
[334163839,1722805870298,-500.0,0.00023095,9]
[334163840,1722805870308,-6629.34,0.00023095,9]
[334163841,1722805870318,-1731.8,0.00023095,9]
[334163842,1722805870328,-1551.76,0.00023095,9]
[334163843,1722805870338,-500.0,0.00023095,9]
[334163844,1722805870348,-589.81,0.00023095,9]
[334163845,1722805870359,-1218.11,0.00023095,9]
[334163846,1722805870370,-500.0,0.00023095,9]
[334163847,1722805870379,-500.0,0.00023095,9]
[334163848,1722805870389,-500.0,0.00023095,9]
[334163849,1722805870399,-1011.86,0.00023095,9]
[334163850,1722805870409,-500.0,0.00023095,9]
[334163851,1722805870419,-1603.94,0.00023095,9]
[334163852,1722805870429,-2430.72,0.00023095,9]
[334163853,1722805870439,-780.91,0.00023095,9]
[334163854,1722805870448,-500.0,0.00023095,9]
[334163855,1722805870458,-546.2,0.00023095,9]
[334163856,1722805870468,-500.0,0.00023095,9]
[334163857,1722805870478,-1366.44,0.00023095,9]
[334163858,1722805870487,-2362.81,0.00023095,9]
[334163859,1722805870497,-500.0,0.00023095,9]
[334163860,1722805870507,-500.0,0.00023095,9]
[334163861,1722805870517,-2577.06,0.00023095,9]
[334163862,1722805870527,-840.74,0.00023095,9]
[334163863,1722805870536,-1386.14,0.00023095,9]
[334163864,1722805870545,-1616.46,0.00023095,9]
[334163865,1722805870554,-500.0,0.00023095,9]
[334163866,1722805870564,-500.0,0.00023095,9]
[334163867,1722805870579,-500.0,0.00023095,9]
[334163868,1722805870589,-3538.17,0.00023095,9]
[334163869,1722805870599,-500.0,0.00023095,9]
[334163870,1722805870618,-1548.4,0.00023095,9]
[334163871,1722805870627,-500.0,0.00023095,9]
[334163872,1722805870638,-1033.75,0.00023095,9]
[334163873,1722805870648,-500.0,0.00023095,9]
[334163874,1722805870658,-500.0,0.00023095,9]
[334163875,1722805870668,-1092.49,0.00023095,9]
[334163876,1722805870679,-9086.99,0.00023095,9]
[334163877,1722805870689,-1168.4,0.00023095,9]
[334163878,1722805870699,-1765.93,0.00023095,9]
[334163879,1722805870709,-500.0,0.00023095,9]
[334163880,1722805870719,-1340.4,0.00023095,9]
[334163881,1722805870729,-1384.98,0.00023095,9]
[334163882,1722805870739,-1030.71,0.00023095,9]
[334163883,1722805870749,-500.0,0.00023095,9]
[334163884,1722805870759,-500.0,0.00023095,9]
[334163885,1722805870769,-500.0,0.00023095,9]
[334163886,1722805870779,-1452.74,0.00023095,9]
[334163887,1722805870788,-500.0,0.00023095,9]
[334163888,1722805870798,-1306.99,0.00023095,9]
[334163889,1722805870808,-500.0,0.00023095,9]
[334163890,1722805870817,-500.0,0.00023095,9]
[334163891,1722805870827,-937.33,0.00023095,9]
[334163892,1722805870838,-1739.37,0.00023095,9]
[334163893,1722805870848,-2369.95,0.00023095,9]
[334163894,1722805870860,-500.0,0.00023095,9]
[334163895,1722805870870,-1656.69,0.00023095,9]
[334163896,1722805870880,-2376.7,0.00023095,9]
[334163897,1722805870889,-500.0,0.00023095,9]
[334163898,1722805870899,-500.0,0.00023095,9]
[334163899,1722805870908,-500.0,0.00023095,9]
[334163900,1722805870917,-500.0,0.00023095,9]
[334163901,1722805870927,-2350.99,0.00023095,9]
[334163902,1722805870936,-500.0,0.00023095,9]
[334163903,1722805870947,-500.0,0.00023095,9]
[334163904,1722805870956,-1993.53,0.00023095,9]
[334163905,1722805870966,-500.0,0.00023095,9]
[334163906,1722805870976,-500.0,0.00023095,9]
[334163907,1722805870985,-758.04,0.00023095,9]
[334163908,1722805871003,-500.0,0.00023095,9]
[334163909,1722805871013,-500.0,0.00023095,9]
[334163910,1722805871023,-500.0,0.00023095,9]
[334163911,1722805871032,-1187.35,0.00023095,9]
[334163912,1722805871044,-151.0,0.00023095,7]
[334163913,1722805871053,-151.0,0.00023095,7]
[334163914,1722805871063,-500.0,0.00023095,9]
[334163915,1722805871073,-500.0,0.00023095,9]
[334163916,1722805871084,-1636.69,0.00023095,9]
[334163917,1722805871095,-1551.59,0.00023095,9]
[334163918,1722805871107,-1247.64,0.00023095,9]
[334163919,1722805871118,-857.36,0.00023095,9]
[334163920,1722805871129,-500.0,0.00023095,9]
[334163921,1722805871139,-500.0,0.00023095,9]
[334163922,1722805871151,-777.93,0.00023095,9]
[334163923,1722805871162,-531.47,0.00023095,9]
[334163924,1722805871174,-1062.23,0.00023095,9]
[334163925,1722805871185,-500.0,0.00023095,9]
[334163926,1722805871196,-500.0,0.00023095,9]
[334163927,1722805871207,-500.0,0.00023095,9]
[334163928,1722805871218,-1536.84,0.00023095,9]
[334163929,1722805871229,-5130.9,0.00023095,9]
[334163930,1722805871240,-500.0,0.00023095,9]
[334163931,1722805871251,-500.0,0.00023095,9]
[334163932,1722805871261,-3352.44,0.00023095,9]
[334163933,1722805871274,-1619.45,0.00023095,9]
[334163934,1722805871284,-500.0,0.00023095,9]
[334163935,1722805871294,-500.0,0.00023095,9]
[334163936,1722805871304,-500.0,0.00023095,9]
[334163937,1722805871314,-500.0,0.00023095,9]
[334163938,1722805871323,-8524.14,0.00023095,9]
[334163939,1722805871333,-500.0,0.00023095,9]
[334163940,1722805871343,-500.0,0.00023095,9]
[334163941,1722805871354,-500.0,0.00023095,9]
[334163942,1722805871364,-1025.18,0.00023095,9]
[334163943,1722805871374,-2009.05,0.00023095,9]
[334163944,1722805871383,-590.4,0.00023095,9]
[334163945,1722805871394,-7112.16,0.00023095,9]
[334163946,1722805871404,-500.0,0.00023095,9]
[334163947,1722805871414,-500.0,0.00023095,9]
[334163948,1722805871423,-1553.57,0.00023095,9]
[334163949,1722805871433,-500.0,0.00023095,9]
[334163950,1722805871443,-500.0,0.00023095,9]
[334163951,1722805871452,-500.0,0.00023095,2]
[334163952,1722805871462,-1722.79,0.00023095,9]
[334163953,1722805871472,-1056.97,0.00023095,9]
[334163954,1722805871482,-500.0,0.00023095,9]
[334163955,1722805871493,-500.0,0.00023095,9]
[334163956,1722805871504,-3317.33,0.00023095,9]
[334163957,1722805871514,-500.0,0.00023095,9]
[334163958,1722805871523,-500.0,0.00023095,9]
[334163959,1722805871533,-306.6429219,0.00023095,9]
[334163960,1722805871543,-1901.52,0.00023095,9]
[334163961,1722805871554,-500.0,0.00023095,9]
[334163962,1722805871565,-500.0,0.00023095,9]
[334163963,1722805871579,-187.88124878,0.00023095,9]
[334163964,1722805871589,-500.0,0.00023095,9]
[334163965,1722805871599,-2352.85,0.00023095,9]
[334163966,1722805871610,-9656.6,0.00023095,9]
[334163967,1722805871620,-849.98,0.00023095,9]
[334163968,1722805871630,-1993.32,0.00023095,9]
[334163969,1722805871640,-800.16,0.00023095,9]
[334163970,1722805871653,-500.0,0.00023095,9]
[334163971,1722805871664,-1408.64,0.00023095,9]
[334163972,1722805871673,-1339.66,0.00023095,9]
[334163973,1722805871682,-500.0,0.00023095,9]
[334163974,1722805871692,-865.36,0.00023095,9]
[334163975,1722805871702,-1318.81,0.00023095,9]
[334163976,1722805871712,-500.0,0.00023095,9]
[334163977,1722805871721,-500.0,0.00023095,9]
[334163978,1722805871732,-500.0,0.00023095,9]
[334163979,1722805871741,-2831.73,0.00023095,9]
[334163980,1722805871751,-1471.03,0.00023095,9]
[334163981,1722805871760,-695.79,0.00023095,9]
[334163982,1722805871770,-2363.17,0.00023095,9]
[334163983,1722805871780,-779.57,0.00023095,9]
[334163984,1722805871791,-500.0,0.00023095,9]
[334163985,1722805871800,-500.0,0.00023095,9]
[334163986,1722805871810,-500.0,0.00023095,9]
[334163987,1722805871820,-500.0,0.00023095,9]
[334163988,1722805871830,-500.0,0.00023095,9]
[334163989,1722805871840,-500.0,0.00023095,9]
[334163990,1722805871851,-500.0,0.00023095,9]
[334163991,1722805871862,-500.0,0.00023095,9]
[334163992,1722805871872,-515.07,0.00023095,9]
[334163993,1722805871883,-500.0,0.00023095,9]
[334163994,1722805871894,-1951.22,0.00023095,9]
[334163995,1722805871903,-2530.86,0.000231,7]
[334163996,1722805871913,-150.0,0.000231,2]
[334163997,1722805871924,-500.0,0.00023142,7]
[334163998,1722805871934,-585.2245819,0.00023162,2]
[334163999,1722805871943,-25137.853274,0.00023162,2]
[334164000,1722805871953,-32776.5262192,0.00023162,2]
[334164001,1722805871962,-8524.9494344,0.00023162,2]
[334164002,1722805871971,-8040.8380821,0.00023162,2]
[334164003,1722805872212,-3509.4765209,0.00023162,2]
[334164004,1722805872223,-2049.0364485,0.00023162,2]
[334164005,1722805872233,-9533.2262821,0.00023162,2]
[334164006,1722805872242,-200.0,0.00023173,2]
[334164007,1722805872252,-200.0,0.00023173,2]
[334164008,1722805872262,-508.79891608,0.00023175,2]
[334164009,1722805872272,-500.0,0.00023178,9]
[334164010,1722805872281,-500.0,0.00023178,9]
[334164011,1722805872291,-249.69309198,0.00023178,9]
[334164012,1722805872300,-516.00847283,0.00023178,9]
[334164013,1722805872310,-587.6464833,0.00023178,9]
[334164014,1722805872319,-500.0,0.00023178,9]
[334164015,1722805872329,-500.0,0.00023178,9]
[334164016,1722805872338,-500.0,0.00023178,9]
[334164017,1722805872347,-500.0,0.00023178,9]
[334164018,1722805872360,-500.0,0.00023178,9]
[334164019,1722805872370,-500.0,0.00023178,9]
[334164020,1722805872379,-300.0,0.00023178,9]
[334164021,1722805872389,-500.0,0.00023178,9]
[334164022,1722805872398,-500.0,0.00023178,9]
[334164023,1722805872408,-717.19,0.00023178,9]
[334164024,1722805872417,-500.0,0.00023178,9]
[334164025,1722805872426,-500.0,0.00023178,9]
[334164026,1722805872436,-500.0,0.00023178,9]
[334164027,1722805872445,-653.16,0.00023178,9]
[334164028,1722805872455,-500.0,0.00023178,9]
[334164029,1722805872464,-500.0,0.00023178,9]
[334164030,1722805872474,-500.0,0.00023178,9]
[334164031,1722805872483,-500.0,0.00023178,9]
[334164032,1722805872493,-500.0,0.00023178,9]
[334164033,1722805872502,-500.0,0.00023178,9]
[334164034,1722805872511,-500.0,0.00023178,9]
[334164035,1722805872521,-500.0,0.00023178,9]
[334164036,1722805872530,-500.0,0.00023178,9]
[334164037,1722805872540,-500.0,0.00023178,9]
[334164038,1722805872549,-1121.27,0.00023178,9]
[334164039,1722805872559,-500.0,0.00023178,9]
[334164040,1722805872571,-500.0,0.00023178,9]
[334164041,1722805872581,-500.0,0.00023178,9]
[334164042,1722805872592,-500.0,0.00023178,9]
[334164043,1722805872603,-203.86487522,0.00023178,9]
[334164044,1722805872622,-500.0,0.00023178,9]
[334164045,1722805872631,-500.0,0.00023178,9]
[334164046,1722805872641,-500.0,0.00023178,9]
[334164047,1722805872652,-500.0,0.00023178,9]
[334164048,1722805872661,-500.0,0.00023178,9]
[334164049,1722805872671,-500.0,0.00023178,9]
[334164050,1722805872681,-800.19,0.00023178,9]
[334164051,1722805872690,-500.0,0.00023178,9]
[334164052,1722805872699,-593.38,0.00023178,9]
[334164053,1722805872708,-500.0,0.00023178,9]
[334164054,1722805872718,-500.0,0.00023178,9]
[334164055,1722805872727,-500.0,0.00023178,9]
[334164056,1722805872737,-500.0,0.00023178,9]
[334164057,1722805872747,-500.0,0.00023178,9]
[334164058,1722805872756,-500.0,0.00023178,9]
[334164059,1722805872766,-500.0,0.00023178,9]
[334164060,1722805872776,-500.0,0.00023178,9]
[334164061,1722805872786,-500.0,0.00023178,9]
[334164062,1722805872796,-500.0,0.00023178,9]
[334164063,1722805872806,-500.0,0.00023178,9]
[334164064,1722805872817,-548.24,0.00023178,9]
[334164065,1722805872827,-500.0,0.00023178,9]
[334164066,1722805872839,-500.0,0.00023178,9]
[334164067,1722805872851,-850.63,0.00023178,9]
[334164068,1722805872862,-500.0,0.00023178,9]
[334164069,1722805872871,-500.0,0.00023178,9]
[334164070,1722805872881,-500.0,0.00023178,9]
[334164071,1722805872895,-500.0,0.00023178,9]
[334164072,1722805872913,-588.3,0.00023178,9]
[334164073,1722805872926,-500.0,0.00023178,9]
[334164074,1722805872935,-326.9597356,0.00023178,9]
[334164075,1722805872944,-500.0,0.00023178,9]
[334164076,1722805872954,-500.0,0.00023178,9]
[334164077,1722805872963,-500.0,0.00023178,9]
[334164078,1722805872973,-500.0,0.00023178,9]
[334164079,1722805872982,-701.06,0.00023178,9]
[334164080,1722805872992,-500.0,0.00023178,9]
[334164081,1722805873001,-500.0,0.00023178,9]
[334164082,1722805873010,-500.0,0.00023178,9]
[334164083,1722805873020,-500.0,0.00023178,9]
[334164084,1722805873029,-500.0,0.00023178,9]
[334164085,1722805873039,-500.0,0.00023178,9]
[334164086,1722805873048,-500.0,0.00023178,9]
[334164087,1722805873058,-500.0,0.00023178,9]
[334164088,1722805873068,-500.0,0.00023178,9]
[334164089,1722805873078,-500.0,0.00023178,9]
[334164090,1722805873087,-500.0,0.00023178,9]
[334164091,1722805873097,-500.0,0.00023178,9]
[334164092,1722805873108,-689.16,0.00023178,9]
[334164093,1722805873117,-500.0,0.00023178,9]
[334164094,1722805873127,-500.0,0.00023178,9]
[334164095,1722805873136,-500.0,0.00023178,9]
[334164096,1722805873145,-423.73,0.00023178,9]
[334164097,1722805873155,-500.0,0.00023178,9]
[334164098,1722805873165,-500.0,0.00023178,9]
[334164099,1722805873174,-754.72,0.00023178,9]
[334164100,1722805873184,-500.0,0.00023178,9]
[334164101,1722805873194,-500.0,0.00023178,9]
[334164102,1722805873203,-500.0,0.00023178,9]
[334164103,1722805873212,-500.0,0.00023178,9]
[334164104,1722805873222,-500.0,0.00023178,9]
[334164105,1722805873231,-500.0,0.00023178,9]
[334164106,1722805873240,-500.0,0.00023178,9]
[334164107,1722805873250,-500.0,0.00023178,9]
[334164108,1722805873261,-500.0,0.00023178,9]
[334164109,1722805873271,-500.0,0.00023178,9]
[334164110,1722805873281,-500.0,0.00023178,9]
[334164111,1722805873290,-500.0,0.00023178,9]
[334164112,1722805873300,-500.0,0.00023178,9]
[334164113,1722805873311,-500.0,0.00023178,9]
[334164114,1722805873322,-500.0,0.00023178,9]
[334164115,1722805873331,-198.81,0.00023178,9]
[334164116,1722805873341,-730.4,0.00023178,9]
[334164117,1722805873350,-1009.26,0.00023178,9]
[334164118,1722805873361,-500.0,0.00023178,9]
[334164119,1722805873371,-539.24,0.00023178,9]
[334164120,1722805873380,-500.0,0.00023178,9]
[334164121,1722805873389,-500.0,0.00023178,9]
[334164122,1722805873399,-500.0,0.00023178,9]
[334164123,1722805873408,-500.0,0.00023178,9]
[334164124,1722805873418,-615.35,0.00023178,9]
[334164125,1722805873428,-500.0,0.00023178,9]
[334164126,1722805873438,-162.29168649,0.00023178,9]
[334164127,1722805873447,-726.79,0.00023178,9]
[334164128,1722805873457,-500.0,0.00023178,9]
[334164129,1722805873468,-500.0,0.00023178,9]
[334164130,1722805873477,-500.0,0.00023178,9]
[334164131,1722805873487,-500.0,0.00023178,9]
[334164132,1722805873496,-500.0,0.00023178,9]
[334164133,1722805873506,-500.0,0.00023178,9]
[334164134,1722805873515,-500.0,0.00023178,9]
[334164135,1722805873525,-500.0,0.00023178,9]
[334164136,1722805873535,-500.0,0.00023178,9]
[334164137,1722805873544,-500.0,0.00023178,9]
[334164138,1722805873554,-500.0,0.00023178,9]
[334164139,1722805873564,-500.0,0.00023178,9]
[334164140,1722805873577,-500.0,0.00023178,9]
[334164141,1722805873586,-500.0,0.00023178,9]
[334164142,1722805873596,-500.0,0.00023178,9]
[334164143,1722805873606,-465.20739839,0.00023178,9]
[334164144,1722805873616,-500.0,0.00023178,9]
[334164145,1722805873625,-500.0,0.00023178,9]
[334164146,1722805873635,-500.0,0.00023178,9]
[334164147,1722805873644,-500.0,0.00023178,9]
[334164148,1722805873657,-500.0,0.00023178,9]
[334164149,1722805873667,-961.79,0.00023178,9]
[334164150,1722805873676,-500.0,0.00023178,9]
[334164151,1722805873686,-500.0,0.00023178,9]
[334164152,1722805873696,-500.0,0.00023178,9]
[334164153,1722805873705,-500.0,0.00023178,9]
[334164154,1722805873715,-500.0,0.00023178,9]
[334164155,1722805873724,-500.0,0.00023178,9]
[334164156,1722805873734,-500.0,0.00023178,9]
[334164157,1722805873743,-500.0,0.00023178,9]
[334164158,1722805873753,-500.0,0.00023178,9]
[334164159,1722805873763,-500.0,0.00023178,9]
[334164160,1722805873772,-279.31453792,0.00023178,9]
[334164161,1722805873781,-500.0,0.00023178,9]
[334164162,1722805873791,-500.0,0.00023178,9]
[334164163,1722805873800,-500.0,0.00023178,9]
[334164164,1722805873810,-500.0,0.00023178,9]
[334164165,1722805873819,-500.0,0.00023178,9]
[334164166,1722805873828,-500.0,0.00023178,9]
[334164167,1722805873838,-500.0,0.00023178,9]
[334164168,1722805873847,-500.0,0.00023178,9]
[334164169,1722805873857,-500.0,0.00023178,9]
[334164170,1722805873867,-500.0,0.00023178,9]
[334164171,1722805873876,-500.0,0.00023178,9]
[334164172,1722805873887,-500.0,0.00023178,9]
[334164173,1722805873898,-768.89,0.00023178,9]
[334164174,1722805873907,-500.0,0.00023178,9]
[334164175,1722805873917,-500.0,0.00023178,9]
[334164176,1722805873927,-500.0,0.00023178,9]
[334164177,1722805873936,-538.21,0.00023178,9]
[334164178,1722805873946,-500.0,0.00023178,9]
[334164179,1722805873956,-500.0,0.00023178,9]
[334164180,1722805873965,-500.0,0.00023178,9]
[334164181,1722805873975,-743.11,0.00023178,9]
[334164182,1722805873984,-500.0,0.00023178,9]
[334164183,1722805873994,-863.38,0.00023178,9]
[334164184,1722805874004,-500.0,0.00023178,9]
[334164185,1722805874013,-500.0,0.00023178,9]
[334164186,1722805874023,-500.0,0.00023178,9]
[334164187,1722805874033,-500.0,0.00023178,9]
[334164188,1722805874043,-500.0,0.00023178,9]
[334164189,1722805874052,-611.78,0.00023178,9]
[334164190,1722805874061,-500.0,0.00023178,9]
[334164191,1722805874070,-500.0,0.00023178,9]
[334164192,1722805874080,-500.0,0.00023178,9]
[334164193,1722805874090,-500.0,0.00023178,9]
[334164194,1722805874099,-183.30224605,0.00023178,9]
[334164195,1722805874111,-500.0,0.00023178,9]
[334164196,1722805874120,-500.0,0.00023178,9]
[334164197,1722805874129,-500.0,0.00023178,9]
[334164198,1722805874138,-500.0,0.00023178,9]
[334164199,1722805874148,-500.0,0.00023178,9]
[334164200,1722805874157,-500.0,0.00023178,9]
[334164201,1722805874166,-500.0,0.00023178,9]
[334164202,1722805874175,-500.0,0.00023178,9]
[334164203,1722805874184,-500.0,0.00023178,9]
[334164204,1722805874193,-353.53173767,0.00023178,9]
[334164205,1722805874203,-500.0,0.00023178,9]
[334164206,1722805874212,-500.0,0.00023178,9]
[334164207,1722805874222,-500.0,0.00023178,9]
[334164208,1722805874232,-910.69,0.00023178,9]
[334164209,1722805874242,-500.0,0.00023178,9]
[334164210,1722805874252,-500.0,0.00023178,9]
[334164211,1722805874261,-500.0,0.00023178,9]
[334164212,1722805874271,-500.0,0.00023178,9]
[334164213,1722805874281,-500.0,0.00023178,9]
[334164214,1722805874291,-500.0,0.00023178,9]
[334164215,1722805874300,-933.39,0.00023178,9]
[334164216,1722805874310,-500.0,0.00023178,9]
[334164217,1722805874319,-500.0,0.00023178,9]
[334164218,1722805874329,-500.0,0.00023178,9]
[334164219,1722805874338,-500.0,0.00023178,9]
[334164220,1722805874348,-555.10212263,0.00023178,9]
[334164221,1722805874359,-500.0,0.00023178,9]
[334164222,1722805874369,-980.26,0.00023178,9]
[334164223,1722805874378,-500.0,0.00023178,9]
[334164224,1722805874387,-500.0,0.00023178,9]
[334164225,1722805874396,-500.0,0.00023178,9]
[334164226,1722805874406,-500.0,0.00023178,9]
[334164227,1722805874415,-500.0,0.00023178,9]
[334164228,1722805874425,-500.0,0.00023178,9]
[334164229,1722805874434,-500.0,0.00023178,9]
[334164230,1722805874444,-500.0,0.00023178,9]
[334164231,1722805874453,-500.0,0.00023178,9]
[334164232,1722805874462,-500.0,0.00023178,9]
[334164233,1722805874472,-500.0,0.00023178,9]
[334164234,1722805874481,-500.0,0.00023178,9]
[334164235,1722805874490,-500.0,0.00023178,9]
[334164236,1722805874499,-500.0,0.00023178,9]
[334164237,1722805874509,-500.0,0.00023178,9]
[334164238,1722805874518,-500.0,0.00023178,9]
[334164239,1722805874527,-500.0,0.00023178,9]
[334164240,1722805874537,-500.0,0.00023178,9]
[334164241,1722805874546,-500.0,0.00023178,9]
[334164242,1722805874556,-500.0,0.00023178,9]
[334164243,1722805874565,-500.0,0.00023178,9]
[334164244,1722805874574,-500.0,0.00023178,9]
[334164245,1722805874586,-500.0,0.00023178,9]
[334164246,1722805874596,-500.0,0.00023178,9]
[334164247,1722805874605,-551.7,0.00023178,9]
[334164248,1722805874619,-500.0,0.00023178,9]
[334164249,1722805874628,-500.0,0.00023178,9]
[334164250,1722805874638,-500.0,0.00023178,2]
[334164251,1722805874647,-396.14,0.00023178,9]
[334164252,1722805874659,-500.0,0.00023178,9]
[334164253,1722805874671,-500.0,0.00023178,9]
[334164254,1722805874680,-500.0,0.00023178,9]
[334164255,1722805874690,-500.0,0.00023178,9]
[334164256,1722805874699,-500.0,0.00023178,9]
[334164257,1722805874709,-500.0,0.00023178,9]
[334164258,1722805874718,-500.0,0.00023178,9]
[334164259,1722805874728,-500.0,0.00023178,9]
[334164260,1722805874738,-500.0,0.00023178,9]
[334164261,1722805874748,-500.0,0.00023178,9]
[334164262,1722805874758,-500.0,0.00023178,9]
[334164263,1722805874767,-500.0,0.00023178,9]
[334164264,1722805874777,-500.0,0.00023178,9]
[334164265,1722805874786,-500.0,0.00023178,9]
[334164266,1722805874796,-500.0,0.00023178,9]
[334164267,1722805874805,-765.42,0.00023178,9]
[334164268,1722805874815,-500.0,0.00023178,9]
[334164269,1722805874824,-500.0,0.00023178,9]
[334164270,1722805874834,-500.0,0.00023178,9]